bitfinex/quotes_ETHUSD_20241108
["timestamp","ask_amount","ask_price","bid_price","bid_amount"]
[1731025353410,2.4942,2942.1,2940.5,0.7654561]
[1731025353628,3.0442,2941.8,2939.3,0.29875062]
[1731025353939,2.4942,2941.6,2939.4,0.06801358]
[1731025354145,0.03,2941.5,2939.6,4.50265377]
[1731025354317,0.58,2941.5,2939.7,0.06800684]
[1731025354513,0.30742,2941.4,2939.8,0.45706606]
[1731025354825,3.0,2942.4,2939.8,0.45706606]
[1731025354826,0.03,2942.3,2940.6,4.50265377]
[1731025355137,0.03,2942.4,2940.1,4.50265377]
[1731025355348,0.03,2942.4,2939.7,1.65819862]
[1731025355349,2.4942,2942.3,2940.2,0.45026538]
[1731025355541,4.50265377,2942.7,2939.6,4.50265377]
[1731025355542,2.4942,2941.9,2939.6,4.50265377]
[1731025355713,2.4673,2941.7,2939.7,0.06801382]
[1731025356036,0.58,2941.6,2939.8,0.8087]
[1731025356213,0.58,2941.6,2939.9,0.06801383]
[1731025356419,0.30473,2941.5,2939.9,0.10959323]
[1731025356618,0.03,2941.6,2940.1,4.50265377]
[1731025356922,0.03,2941.9,2940.2,3.0]
[1731025357127,0.03,2941.9,2940.4,0.7919]
[1731025357659,0.03,2941.9,2940.5,0.06799192]
[1731025357821,0.7682,2942.0,2940.6,0.06799193]
[1731025358017,0.7682,2942.0,2940.6,4.97972217]
[1731025358255,0.775,2943.0,2940.7,3.40907647]
[1731025358458,2.4673,2942.8,2940.7,0.49797222]
[1731025358769,3.2423,2942.6,2940.7,0.49797222]
[1731025359082,2.5547,2942.5,2940.4,0.7919]
[1731025359502,2.5547,2942.5,2940.7,3.0]
[1731025359718,0.03,2942.5,2941.7,4.50265377]
[1731025359876,0.8089,2943.5,2941.8,4.20816538]
[1731025359877,0.03,2943.4,2941.8,4.20816538]
[1731025360261,0.03,2943.4,2941.8,4.64307518]
[1731025360492,0.03,2943.4,2942.2,4.50265377]
[1731025360732,0.03,2943.4,2941.8,4.20816538]
[1731025360733,0.03,2943.4,2942.3,0.40026538]
[1731025360861,0.03,2943.4,2941.8,4.20816538]
[1731025362001,0.03,2943.4,2941.8,4.27612551]
[1731025362299,0.03,2943.4,2941.8,1.20816538]
[1731025362498,2.376,2943.4,2941.8,1.20816538]
[1731025363098,0.815,2943.1,2941.4,0.7698]
[1731025363401,0.03,2943.0,2941.4,0.7698]
[1731025363571,0.58,2943.0,2941.4,0.7698]
[1731025363774,0.58,2943.0,2940.7,4.50265377]
[1731025363775,0.815,2942.7,2940.8,0.7698]
[1731025364099,0.58,2942.6,2940.8,1.22006538]
[1731025364418,2.346,2942.2,2940.8,0.45026538]
[1731025364696,0.58,2942.1,2940.4,0.7698]
[1731025364858,0.58,2942.1,2940.5,0.06800431]
[1731025364859,0.55,2941.9,2940.5,0.06800431]
[1731025365054,0.55,2941.9,2940.4,0.7698]
[1731025365055,0.03,2941.8,2940.4,0.7698]
[1731025365278,0.03,2941.8,2940.1,0.0415794]
[1731025365483,0.815,2941.7,2940.1,0.0415794]
[1731025365693,0.03,2941.6,2940.1,0.0415794]
[1731025365912,0.58,2941.6,2940.1,0.0415794]
[1731025366086,0.55,2941.4,2940.1,0.0415794]
[1731025366409,0.55,2941.1,2940.1,0.0415794]
[1731025366714,0.81357568,2940.9,2940.1,0.0415794]
[1731025367020,0.58,2940.8,2940.1,0.0415794]
[1731025367304,0.03,2940.8,2940.1,0.0415794]
[1731025368072,0.58,2940.8,2940.1,0.0415794]
[1731025368477,0.58,2940.8,2939.1,0.815]
[1731025368810,0.58,2940.8,2938.3,0.06803892]
[1731025369013,0.58,2940.8,2938.4,0.45706927]
[1731025369211,0.58,2940.8,2938.2,1.360536]
[1731025369212,4.50265377,2939.8,2938.2,1.360536]
[1731025369422,3.0,2940.5,2937.3,0.7178]
[1731025369423,0.7983,2939.6,2937.3,0.7178]
[1731025369626,0.08507573,2939.5,2938.1,4.50265377]
[1731025369921,0.55,2939.4,2937.6,4.50265377]
[1731025370123,0.08507551,2939.3,2937.7,0.51832579]
[1731025370292,1.3483,2939.2,2937.7,0.45026538]
[1731025370490,0.55,2939.0,2937.7,0.51833738]
[1731025370701,0.7983,2939.2,2937.7,0.51833738]
[1731025370702,0.08509001,2938.9,2937.8,0.50209912]
[1731025370906,0.08508117,2939.1,2937.8,0.50209912]
[1731025371280,0.55,2939.0,2937.8,0.50209912]
[1731025371486,0.08508396,2938.9,2937.6,4.50265377]
[1731025371802,0.08508396,2938.9,2937.7,0.06806721]
[1731025372276,0.08508396,2938.9,2937.6,4.93756357]
[1731025372478,0.08508396,2939.1,2937.6,4.93756357]
[1731025372777,0.7983,2939.2,2938.1,4.50265377]
[1731025373011,0.7983,2939.2,2938.1,4.93756357]
[1731025373351,0.7983,2939.2,2938.2,0.4349098]
[1731025373717,0.7983,2939.2,2938.3,0.06805189]
[1731025373915,0.7983,2939.2,2938.2,3.0]
[1731025374251,0.7983,2939.2,2935.7,1.71547735]
[1731025374252,0.8226,2940.0,2938.7,3.0]
[1731025374429,0.8226,2940.0,2938.7,3.4349098]
[1731025374829,0.8226,2940.0,2938.8,0.4349098]
[1731025375249,0.8226,2940.0,2938.8,0.50294551]
[1731025375432,0.8226,2940.0,2938.9,0.35029455]
[1731025375633,0.8226,2940.0,2939.0,0.06803964]
[1731025375836,0.8226,2940.0,2938.9,0.35029455]
[1731025376036,0.8226,2940.0,2938.6,4.50265377]
[1731025376263,0.08505622,2939.9,2938.4,3.0]
[1731025376463,0.08505622,2939.9,2938.5,0.3755]
[1731025376622,0.08505622,2939.9,2938.6,0.06805072]
[1731025376929,0.55,2939.8,2938.7,0.24275369]
[1731025377152,0.8005,2939.5,2938.7,0.24275369]
[1731025377333,0.08506342,2939.4,2938.7,0.24275369]
[1731025379341,0.8005,2939.5,2938.7,0.24275369]
[1731025379874,0.8219,2940.5,2938.8,1.29695359]
[1731025380074,0.0850481,2940.4,2938.8,0.86204379]
[1731025380258,0.0850481,2940.4,2938.8,0.794]
[1731025380589,0.8219,2940.3,2938.8,0.24386779]
[1731025380820,0.7516,2940.1,2938.8,0.24386779]
[1731025381096,0.7516,2940.1,2938.8,0.31191457]
[1731025381097,0.08505848,2940.0,2938.8,0.31191457]
[1731025381276,0.55,2939.9,2938.9,0.24410429]
[1731025381590,0.7516,2940.1,2939.0,0.06804352]
[1731025381772,0.7516,2940.1,2938.9,0.24410429]
[1731025382284,0.7516,2940.1,2939.0,0.06804169]
[1731025382457,0.7516,2940.1,2938.9,0.24410429]
[1731025382458,0.08505212,2940.0,2938.9,0.24410429]
[1731025382779,0.55,2939.9,2938.9,0.24410429]
[1731025382986,0.0850582,2939.8,2938.9,0.24410429]
[1731025383190,0.0850582,2939.8,2938.8,0.06804656]
[1731025383356,0.0850582,2939.8,2938.1,3.0]
[1731025383357,0.0850582,2939.8,2938.5,0.06804655]
[1731025383967,0.7516,2940.1,2938.5,4.50265377]
[1731025384185,0.7516,2940.1,2938.6,0.52966538]
[1731025385351,0.7516,2940.1,2939.0,4.50265377]
[1731025385546,0.7516,2940.1,2939.0,4.57067846]
[1731025385867,0.7501,2941.0,2939.1,3.4349098]
[1731025386076,0.08502181,2940.9,2939.3,0.7586]
[1731025386484,0.7501,2941.0,2939.4,0.06801538]
[1731025386649,0.08501265,2940.9,2939.4,0.4349098]
[1731025386853,0.08501265,2940.9,2939.3,0.7586]
[1731025387355,0.87082733,2940.8,2938.9,1.7625]
[1731025387583,0.7858,2940.6,2938.9,1.0]
[1731025387790,0.7858,2940.4,2938.9,1.0]
[1731025388091,0.54759991,2940.1,2938.9,1.0]
[1731025388297,0.87086354,2940.0,2938.9,1.0]
[1731025390377,0.55,2939.7,2938.9,1.0]
[1731025390614,0.8255,2939.3,2938.9,1.0]
[1731025390795,0.55,2939.1,2938.9,1.0]
[1731025391000,0.63507429,2939.0,2938.9,1.0]
[1731025391200,1.3755,2939.0,2938.9,0.21350845]
[1731025392802,0.8255,2939.0,2938.9,0.21350845]
[1731025393782,0.8255,2940.0,2938.9,0.21350845]
[1731025394011,0.08506708,2939.9,2938.9,0.21350845]
[1731025394211,0.8255,2940.0,2939.0,0.06803847]
[1731025394515,0.08504455,2939.9,2938.9,0.21350845]
[1731025395221,0.8255,2940.0,2939.0,0.06803929]
[1731025395383,0.8255,2940.0,2939.0,0.7886]
[1731025395585,0.7942,2940.5,2939.0,0.7886]
[1731025395785,0.08503901,2940.4,2939.0,0.7886]
[1731025396316,0.08503901,2940.4,2939.0,0.85663122]
[1731025396519,0.08503901,2940.4,2939.0,3.85663122]
[1731025396724,0.08503066,2940.3,2939.1,0.85727934]
[1731025397518,0.08503066,2940.3,2938.9,0.21350845]
[1731025397519,0.824,2940.2,2938.9,0.21350845]
[1731025397727,0.08506304,2940.1,2938.9,0.21350845]
[1731025397886,0.55,2940.0,2938.9,0.21350845]
[1731025398205,0.0850587,2939.9,2939.2,0.2461385]
[1731025398584,0.0850587,2939.9,2939.3,0.2461385]
[1731025398788,0.0850587,2939.9,2939.4,0.2461385]
[1731025399092,0.08505685,2939.9,2939.5,0.2461385]
[1731025399301,0.08505685,2939.9,2939.6,0.2461385]
[1731025399484,0.08505685,2939.9,2939.7,0.2461385]
[1731025399702,0.08505685,2939.9,2939.8,0.2461385]
[1731025400140,0.0850464,2940.1,2939.8,0.2461385]
[1731025400321,0.55,2940.0,2939.9,0.2461385]
[1731025400507,1.3236,2940.0,2939.9,0.2461385]
[1731025400702,0.7736,2940.0,2938.9,0.28155095]
[1731025400905,0.7736,2940.0,2939.0,0.24575126]
[1731025401243,0.08504892,2939.9,2939.1,0.24575126]
[1731025401399,0.08504892,2939.9,2939.2,0.24575126]
[1731025401605,0.08504892,2939.9,2939.3,0.24575126]
[1731025401799,0.08504892,2939.9,2938.9,0.21350845]
[1731025401800,0.08504892,2939.9,2939.4,0.24575126]
[1731025402103,0.08504892,2939.9,2939.5,0.24575126]
[1731025402303,0.7736,2940.0,2939.6,0.24575126]
[1731025402501,0.7736,2940.0,2939.0,0.06804038]
[1731025402502,0.7736,2940.0,2939.7,0.24575126]
[1731025402736,0.7736,2940.0,2939.8,0.24575126]
[1731025402952,0.7736,2940.0,2939.0,0.06804038]
[1731025402953,0.7736,2940.0,2939.9,0.24575126]
[1731025403149,0.55,2940.8,2939.9,0.24575126]
[1731025403304,0.55,2940.5,2940.0,0.24575126]
[1731025403504,1.3517,2940.2,2940.1,0.24575126]
[1731025403704,1.43674808,2940.2,2940.1,0.24581274]
[1731025403904,1.3517,2940.2,2940.1,0.24581274]
[1731025404503,1.3517,2940.2,2940.1,0.24585113]
[1731025404809,0.8017,2940.2,2940.1,0.24585113]
[1731025405321,1.3517,2940.2,2940.1,0.24585113]
[1731025405708,1.3517,2940.2,2938.9,0.21350845]
[1731025405940,0.08505277,2940.1,2939.0,0.24583472]
[1731025406239,0.08505277,2940.1,2939.1,0.24583472]
[1731025406439,0.08505277,2940.1,2939.2,0.24583472]
[1731025406647,0.08505277,2940.1,2939.3,0.24583472]
[1731025406942,0.08505277,2940.1,2939.4,0.24583472]
[1731025407163,0.55,2940.0,2939.5,0.24583472]
[1731025407453,0.55,2940.0,2939.6,0.24583472]
[1731025407454,0.08506093,2939.9,2939.6,0.24583472]
[1731025407746,0.08506093,2939.9,2939.7,0.24583472]
[1731025407925,0.08506093,2939.9,2938.9,0.28155686]
[1731025408120,0.0850528,2940.1,2939.0,0.24585783]
[1731025408564,0.0850528,2940.1,2939.1,0.31388919]
[1731025408855,0.7761,2940.6,2939.3,0.7678]
[1731025409055,0.05101937,2941.5,2940.0,0.7678]
[1731025409261,0.05101937,2941.5,2940.4,4.50265377]
[1731025409549,0.05101937,2941.5,2940.7,0.8086]
[1731025409854,0.08498824,2942.1,2940.8,0.52790039]
[1731025410151,0.08498824,2942.1,2940.8,0.4599098]
[1731025410315,0.08498824,2942.1,2940.8,0.52790123]
[1731025410818,0.08498824,2942.1,2940.8,0.4599098]
[1731025411753,0.08498824,2942.1,2940.9,0.49483646]
[1731025411915,0.8331,2942.2,2940.9,0.49483646]
[1731025412549,0.7658,2942.0,2940.2,0.8222]
[1731025412724,0.08500399,2941.9,2940.2,0.8222]
[1731025412930,0.08500399,2941.9,2940.3,0.53107158]
[1731025413442,0.7658,2941.8,2940.3,0.53107158]
[1731025413626,0.08500871,2941.7,2940.5,0.7734]
[1731025413826,0.08498661,2942.6,2941.0,3.7734]
[1731025414048,0.08498661,2942.6,2941.1,0.89417706]
[1731025414250,0.7784,2943.5,2941.5,3.8035]
[1731025414455,0.08495101,2943.4,2942.0,3.8035]
[1731025414675,0.08495101,2943.4,2942.1,1.35706979]
[1731025415034,0.08495101,2943.4,2942.1,1.28911138]
[1731025415260,0.08495101,2943.4,2942.1,1.35706963]
[1731025415534,0.7754,2944.1,2942.2,0.8046]
[1731025415850,0.08493774,2944.0,2942.5,3.0]
[1731025416047,0.08492795,2944.0,2942.6,1.2645098]
[1731025416249,0.7754,2944.5,2942.7,1.29898888]
[1731025416449,0.7754,2944.5,2943.0,3.0]
[1731025416450,0.08492046,2944.4,2943.0,3.0]
[1731025416646,0.08492046,2944.4,2943.1,0.8046]
[1731025416975,0.08492046,2944.4,2943.1,1.26450964]
[1731025417575,0.7754,2944.5,2943.1,1.26450964]
[1731025417879,0.7754,2944.5,2943.2,0.06793639]
[1731025418083,0.08492047,2945.4,2943.4,4.48851577]
[1731025418084,0.7754,2945.1,2943.4,4.48851577]
[1731025418254,0.08490097,2945.0,2943.5,4.08047533]
[1731025418446,0.08490097,2945.0,2943.6,0.8046]
[1731025418681,0.08490097,2945.0,2943.6,1.28784297]
[1731025418835,0.08490097,2945.0,2943.1,0.48324297]
[1731025419040,0.08490097,2945.0,2942.7,0.8046]
[1731025419041,0.82638358,2944.2,2942.7,0.8046]
[1731025419284,0.08493724,2944.1,2942.7,0.8046]
[1731025420538,0.08493724,2944.1,2943.0,0.7911]
[1731025420848,0.05098358,2944.2,2943.1,1.49745046]
[1731025421037,0.05098358,2944.2,2943.1,5.29165046]
[1731025421237,0.7942,2944.1,2942.6,0.7911]
[1731025421486,0.08493787,2944.0,2942.6,0.7911]
[1731025422241,0.08493787,2944.0,2942.7,0.06795029]
[1731025422441,0.08493787,2944.0,2942.7,0.52960023]
[1731025422654,0.7942,2944.1,2942.7,0.96949465]
[1731025422988,0.08492664,2944.0,2942.8,0.17605947]
[1731025423559,0.08492664,2944.0,2942.6,0.7911]
[1731025423560,0.7942,2944.1,2942.6,0.7911]
[1731025423884,0.08493385,2943.9,2942.6,0.7911]
[1731025424248,0.7942,2944.1,2942.6,0.7911]
[1731025424249,0.7942,2944.1,2942.9,4.48851577]
[1731025424546,0.7942,2944.1,2943.0,0.43989442]
[1731025424953,0.7942,2944.1,2943.1,0.06793258]
[1731025425391,0.7942,2944.1,2943.1,0.54579927]
[1731025425686,0.08492175,2944.0,2942.6,0.7911]
[1731025425912,0.08492175,2944.0,2942.7,0.06794735]
[1731025426058,0.7942,2944.1,2942.9,4.48851577]
[1731025426248,0.7942,2944.1,2943.0,0.888746]
[1731025426670,0.05098358,2944.2,2943.4,0.7679]
[1731025426878,0.05098358,2944.2,2943.5,0.96946615]
[1731025427082,0.05098358,2944.2,2943.5,0.90154436]
[1731025427291,0.05098358,2944.2,2943.0,0.44885158]
[1731025427450,0.8025,2944.1,2943.0,0.44885158]
[1731025427653,0.7731,2943.9,2941.8,5.24431577]
[1731025427872,0.7731,2943.7,2941.8,5.24431577]
[1731025428188,0.7731,2943.5,2941.4,0.7558]
[1731025428347,0.7731,2943.3,2941.4,0.7558]
[1731025428551,0.08495987,2943.2,2941.5,0.40897775]
[1731025428773,0.08495987,2943.2,2941.5,0.87062769]
[1731025428956,0.08495987,2943.2,2941.7,4.48851577]
[1731025429264,0.01,2944.0,2941.7,4.48851577]
[1731025429265,0.8272,2943.1,2941.8,0.94849933]
[1731025429477,0.8272,2943.1,2941.8,1.41014927]
[1731025429730,0.8272,2943.1,2942.2,4.48851577]
[1731025430016,0.806,2943.9,2942.3,1.79019769]
[1731025430175,0.806,2943.9,2942.3,2.23904927]
[1731025430176,0.08493258,2943.8,2942.3,2.23904927]
[1731025430372,0.08493258,2943.8,2942.3,5.23904927]
[1731025430586,0.08493258,2943.8,2942.4,0.9727565]
[1731025430785,0.806,2943.9,2942.5,0.98379769]
[1731025431017,0.806,2943.9,2942.6,0.067946]
[1731025431189,0.806,2943.9,2942.7,0.98379769]
[1731025431584,0.08493316,2943.8,2942.7,0.98379769]
[1731025431919,0.7613,2943.7,2942.4,0.9727565]
[1731025432087,0.7613,2943.7,2942.5,1.2088485]
[1731025432088,0.08494202,2943.6,2942.5,1.2088485]
[1731025432290,0.08495507,2943.5,2941.9,0.75]
[1731025432489,0.7743,2943.4,2942.2,0.49964775]
[1731025432717,0.08495645,2943.3,2942.3,0.06796516]
[1731025433013,0.08495645,2943.3,2942.4,0.49964775]
[1731025433880,0.08495645,2943.3,2942.4,0.98379769]
[1731025434292,0.7743,2943.4,2942.5,0.06796388]
[1731025434522,0.7743,2943.4,2942.6,0.55210584]
[1731025434812,0.7743,2943.4,2942.3,4.48851577]
[1731025434979,0.7743,2943.4,2942.4,0.44885158]
[1731025435184,0.7743,2943.4,2942.3,0.48414994]
[1731025435411,0.08494488,2943.3,2941.9,4.18631442]
[1731025435714,0.84074488,2943.3,2942.0,0.86748302]
[1731025435898,0.55,2943.2,2941.3,4.48851577]
[1731025436220,0.8213,2942.9,2941.4,0.43631442]
[1731025436419,0.8213,2942.7,2941.4,0.885166]
[1731025436578,0.8213,2942.5,2941.4,0.885166]
[1731025436782,0.8213,2942.3,2941.1,0.43631442]
[1731025437084,0.0849847,2942.2,2941.1,0.43631442]
[1731025437680,0.0849847,2942.2,2940.8,4.48851577]
[1731025437681,0.8213,2942.1,2940.9,0.5043041]
[1731025438009,0.0849951,2942.0,2941.0,0.49928199]
[1731025438579,0.0849951,2942.0,2941.1,0.5043105]
[1731025438806,0.8213,2942.1,2941.1,0.5043105]
[1731025439018,0.8213,2942.1,2941.1,0.98846044]
[1731025439219,0.8213,2942.1,2941.2,0.48414994]
[1731025439393,0.8213,2942.1,2941.3,0.5043033]
[1731025439598,0.8213,2942.1,2941.4,0.48414994]
[1731025439793,0.8213,2942.1,2941.5,0.06798129]
[1731025440088,0.8213,2942.1,2941.0,0.49928199]
[1731025440596,0.08498865,2942.9,2942.0,0.7669]
[1731025440811,0.7847,2943.6,2942.4,4.48851577]
[1731025441010,0.7847,2943.6,2942.5,1.84131438]
[1731025441218,0.7847,2943.6,2942.5,0.51089994]
[1731025441401,0.7847,2943.6,2942.5,0.57885555]
[1731025441602,0.7847,2943.6,2942.6,0.50673713]
[1731025441784,0.7847,2943.6,2942.2,0.84179737]
[1731025441983,0.08494862,2943.5,2942.2,0.84179737]
[1731025442285,0.08494862,2943.5,2942.3,0.0679612]
[1731025442520,0.08494862,2943.5,2942.4,0.84179737]
[1731025442723,0.7847,2943.6,2942.4,0.84179737]
[1731025442724,0.7847,2943.6,2942.5,3.06795565]
[1731025442952,0.7847,2943.6,2942.9,4.48851577]
[1731025443232,0.7754,2944.5,2943.0,1.62386964]
[1731025443388,0.08492525,2944.4,2943.0,1.62386964]
[1731025443591,0.08492525,2944.4,2943.1,0.4548654]
[1731025443938,0.08492525,2944.4,2943.2,0.51089994]
[1731025444086,0.08492525,2944.4,2943.2,1.10076827]
[1731025445419,0.7962,2944.3,2943.2,0.51089994]
[1731025445585,0.0509627,2944.7,2942.8,0.58986833]
[1731025445586,0.85623387,2944.2,2942.8,0.58986833]
[1731025445895,0.85623387,2944.2,2943.2,0.58986833]
[1731025446102,0.85623387,2944.2,2943.3,0.51089994]
[1731025446336,0.7713,2944.2,2943.4,0.06794018]
[1731025446489,0.7713,2944.2,2943.4,1.16870845]
[1731025447022,0.0509627,2944.7,2943.5,3.70819079]
[1731025447023,0.8025,2944.6,2943.5,3.70819079]
[1731025447201,0.8025,2944.6,2943.9,4.48851577]
[1731025447397,0.8025,2944.6,2944.0,1.16869117]
[1731025447630,0.8025,2944.6,2944.0,1.10076827]
[1731025447784,0.08491315,2944.5,2943.5,0.70819079]
[1731025447989,0.08491315,2944.5,2943.6,0.76858066]
[1731025448188,0.08491315,2944.5,2943.7,0.06793051]
[1731025448493,0.08491315,2944.5,2943.7,0.65779884]
[1731025448716,0.08491315,2944.5,2943.3,0.8042]
[1731025448717,0.7931,2944.4,2942.9,0.8025]
[1731025449030,0.7931,2944.2,2943.0,0.58986833]
[1731025449329,0.08493014,2944.1,2943.0,1.10076827]
[1731025449635,0.7975,2944.0,2943.0,0.58986833]
[1731025449787,0.8824431,2943.9,2943.0,0.58986833]
[1731025450230,0.8824431,2943.9,2943.1,0.57884451]
[1731025450401,0.7975,2943.9,2943.2,0.58986833]
[1731025450604,0.7748,2944.6,2943.6,4.48851577]
[1731025450832,0.7748,2944.6,2943.7,1.10076827]
[1731025451308,0.7748,2944.6,2943.7,4.10076827]
[1731025452211,0.7748,2944.6,2943.7,4.92306827]
[1731025452801,0.7748,2944.6,2943.8,0.06792084]
[1731025453007,0.7604,2945.4,2944.2,3.0]
[1731025453259,0.7604,2945.4,2944.3,1.16867789]
[1731025453537,0.08488756,2945.3,2944.3,0.51089994]
[1731025453744,0.7604,2945.2,2944.4,0.51089994]
[1731025453907,0.08489677,2945.1,2944.4,0.51089994]
[1731025454106,0.08489677,2945.1,2944.3,0.06791742]
[1731025454427,0.8249,2945.0,2943.9,0.49909891]
[1731025454630,0.08490081,2944.9,2944.0,1.10076827]
[1731025454815,0.08490081,2944.9,2944.1,0.51089994]
[1731025455018,0.08490081,2944.9,2944.0,0.58986833]
[1731025455317,0.8249,2944.8,2944.0,0.58986833]
[1731025455508,0.08490772,2944.7,2944.0,0.58986833]
[1731025455707,0.08490772,2944.7,2943.0,1.68816893]
[1731025455708,0.808,2944.6,2943.1,5.85476594]
[1731025456006,0.808,2944.6,2943.5,0.55236833]
[1731025456446,0.808,2944.6,2943.2,0.58547659]
[1731025456447,0.08491664,2944.5,2943.2,0.58547659]
[1731025456643,0.8131,2944.4,2942.9,0.55236833]
[1731025456801,0.8131,2944.2,2942.9,0.55236833]
[1731025456999,0.8131,2944.2,2942.2,2.02580271]
[1731025457000,0.8143,2944.0,2942.3,1.36625017]
[1731025457205,0.01,2944.5,2942.6,0.55236833]
[1731025457206,0.8143,2943.8,2942.6,0.55236833]
[1731025457435,0.01,2944.5,2942.6,0.55236833]
[1731025457436,0.8143,2943.6,2942.6,0.55236833]
[1731025457640,0.8143,2943.6,2942.7,0.57885607]
[1731025457852,0.8143,2943.6,2942.8,0.55236833]
[1731025458050,0.8143,2943.6,2942.9,0.06795198]
[1731025458206,0.8143,2943.6,2942.9,0.57885192]
[1731025458401,0.8143,2943.6,2942.9,1.06750358]
[1731025458607,0.8143,2944.4,2943.0,0.48865166]
[1731025458838,0.8143,2944.4,2943.3,3.0]
[1731025459025,0.8143,2944.4,2943.4,0.9995516]
[1731025459228,0.8143,2944.4,2943.4,0.51089994]
[1731025459427,0.8143,2944.4,2943.3,3.0]
[1731025459644,0.8143,2944.4,2943.4,0.74885158]
[1731025460322,0.8143,2944.4,2943.4,1.25975152]
[1731025460733,0.8143,2944.4,2943.4,0.74885158]
[1731025460937,0.8143,2944.4,2943.1,0.18429036]
[1731025461161,0.7932,2944.2,2942.9,1.36625017]
[1731025461463,0.084931,2944.1,2942.7,0.9995516]
[1731025461665,0.084931,2944.1,2942.9,0.48865166]
[1731025461833,0.7932,2944.0,2943.0,0.51089994]
[1731025462023,0.08493504,2943.9,2942.9,0.48865166]
[1731025462226,0.01,2944.8,2942.4,1.36625017]
[1731025462227,0.802,2944.3,2942.4,1.36625017]
[1731025462426,0.802,2944.1,2942.5,0.79532157]
[1731025462764,0.802,2943.9,2942.5,0.48865166]
[1731025463058,0.55,2944.7,2942.5,0.48865166]
[1731025463059,0.88694486,2943.8,2942.5,0.48865166]
[1731025464629,0.88694486,2943.8,2942.6,0.57886083]
[1731025464852,0.802,2943.8,2942.8,3.0]
[1731025465059,0.802,2943.8,2943.0,3.0]
[1731025465370,0.7905,2944.5,2943.3,3.0]
[1731025465523,0.7905,2944.5,2943.3,3.51089994]
[1731025465724,0.8213,2944.3,2943.3,0.51089994]
[1731025465926,0.8213,2944.1,2942.8,3.0]
[1731025466158,0.90623697,2944.0,2942.8,3.62247457]
[1731025466655,0.90623697,2944.0,2942.9,0.06794957]
[1731025467023,0.90623697,2944.0,2942.9,0.88584356]
[1731025467438,0.90623697,2944.0,2942.9,0.55660123]
[1731025468087,0.90623697,2944.0,2943.0,0.48865166]
[1731025468443,0.90623697,2944.0,2942.5,4.48851577]
[1731025468638,0.90623697,2944.0,2942.2,0.45734333]
[1731025469038,0.90623697,2944.0,2942.3,0.06795857]
[1731025469242,0.90623697,2944.0,2941.8,0.01]
[1731025469243,0.8082,2943.6,2941.6,0.8309]
[1731025469438,0.8082,2943.4,2941.8,4.48851577]
[1731025469678,0.08495178,2943.3,2941.9,1.49185318]
[1731025469940,0.08495178,2943.3,2941.9,1.42389176]
[1731025470141,0.8263,2943.2,2941.9,1.42389176]
[1731025470385,0.0849571,2943.1,2942.0,0.59124075]
[1731025470755,0.01,2943.9,2942.0,0.59124075]
[1731025470756,0.55,2943.6,2942.0,0.59124075]
[1731025471010,0.87966229,2943.5,2942.0,1.10214069]
[1731025471577,0.87966229,2943.5,2942.0,0.59124075]
[1731025472085,0.8002,2943.3,2942.0,0.59124075]
[1731025472287,0.8002,2943.1,2941.4,3.45734333]
[1731025472443,0.8002,2942.9,2941.4,3.45734333]
[1731025472650,0.08496689,2942.8,2941.5,0.8456759]
[1731025472851,0.08496689,2942.8,2941.6,0.45734333]
[1731025473341,0.08496689,2942.8,2941.7,0.06797351]
[1731025473547,0.08496227,2942.8,2941.8,0.45734333]
[1731025473779,0.08496227,2942.8,2941.9,0.06796982]
[1731025473975,0.08496227,2942.8,2941.9,0.52531315]
[1731025474482,0.8002,2942.9,2942.0,0.45734333]
[1731025474688,0.8002,2942.9,2942.1,0.34573433]
[1731025474907,0.8002,2942.9,2942.1,0.41369793]
[1731025475117,0.8002,2942.9,2942.1,0.34573433]
[1731025476765,0.8002,2942.9,2941.6,0.45734333]
[1731025477382,0.84367159,2942.8,2941.3,4.48851577]
[1731025478716,0.7905,2942.7,2941.3,4.96834493]
[1731025478872,0.87547816,2942.6,2941.4,0.97666365]
[1731025479208,0.87547816,2942.6,2941.4,3.97666365]
[1731025479416,0.87547816,2942.6,2941.5,0.84651794]
[1731025479569,0.87547816,2942.6,2941.6,0.0679809]
[1731025480193,0.87547816,2942.6,2941.7,0.9907291]
[1731025480194,0.7905,2942.6,2941.7,0.9907291]
[1731025480416,0.7905,2942.6,2941.7,0.51089994]
[1731025480602,0.7905,2942.6,2941.5,0.84651794]
[1731025480800,0.7905,2942.6,2941.6,0.43433524]
[1731025481931,0.08497724,2942.5,2941.6,0.50231703]
[1731025482500,0.7874,2942.4,2941.6,0.50231703]
[1731025483000,0.7874,2942.4,2941.6,0.06798179]
[1731025483449,0.7874,2942.4,2941.4,3.0]
[1731025483643,0.08497722,2942.3,2941.4,3.0]
[1731025484844,0.08497722,2942.3,2941.3,4.46845682]
[1731025484845,0.767,2942.2,2941.3,4.46845682]
[1731025485015,0.08498726,2942.1,2941.3,3.98862766]
[1731025485854,0.8135,2942.0,2940.2,3.98862766]
[1731025486011,0.55,2941.7,2940.2,3.98862766]
[1731025486207,0.55,2941.5,2939.8,3.98862766]
[1731025486413,0.89851869,2941.4,2939.8,3.98862766]
[1731025487209,0.8135,2941.2,2939.8,3.98862766]
[1731025487408,0.55,2941.3,2939.7,0.47849948]
[1731025487409,0.8135,2940.9,2939.7,0.47849948]
[1731025487643,0.89853437,2940.8,2939.7,0.47849948]
[1731025488053,0.89853437,2940.8,2939.4,3.98862766]
[1731025488054,0.89853437,2940.8,2939.4,4.46712714]
[1731025488206,0.55,2940.7,2939.4,4.46712714]
[1731025488409,0.8135,2940.5,2939.4,4.46712714]
[1731025488633,0.55,2940.7,2939.4,4.46712714]
[1731025488634,0.8135,2940.3,2939.4,4.46712714]
[1731025488913,0.08504355,2940.2,2939.4,4.46712714]
[1731025489317,0.08504355,2940.2,2939.5,3.0]
[1731025490152,0.08504355,2940.2,2939.4,4.46712714]
[1731025490512,0.7875,2940.1,2939.4,0.47849948]
[1731025490820,0.7875,2939.9,2939.4,0.47849948]
[1731025491027,0.7875,2939.9,2939.0,3.98862766]
[1731025491232,0.7875,2939.9,2939.0,4.46712714]
[1731025492015,0.08505437,2939.8,2939.0,4.46712714]
[1731025492417,0.7875,2939.9,2939.0,4.46712714]
[1731025492635,0.7875,2939.9,2939.1,0.46806356]
[1731025493237,0.7875,2939.9,2939.8,3.98862766]